[Event "71st Greek Championship 2022"]
[Site "Athens"]
[Date "2022.12.03"]
[Round "1.1"]
[White "Naoum, Spyridon"]
[Black "Skembris, Spyridon"]
[Result "0-1"]
[ECO "D00"]
[WhiteElo "2352"]
[BlackElo "2381"]
[Annotator "TA"]
[PlyCount "84"]
[EventDate "2022.12.04"]
[EventType "tourn"]
[EventCountry "GRE"]
[SourceTitle "playchess.com"]
[Source "ChessBase"]
[SourceQuality "1"]
[TimeControl "40/5400+30:1800+30"]

{[%evp 9,84,2,14,15,14,15,33,28,31,26,32,25,25,16,37,0,0,0,0,0,18,0,0,-40,0,-56,-51,-51,20,10,22,27,110,20,32,13,83,75,207,197,191,166,123,85,91,88,86,0,133,-58,-62,-125,-137,-216,-179,-332,-326,-360,-158,-658,-658,-1077,-1068,-1109,-1033,-1097,-1073,-29972,-29973,-29973,-29974,-29971,-29972,-29972,-29972,-6375,-5805]} 1. d4 {[%emt 0:00:35]} d5 {[%emt 0:00:34]} 2. Nc3 {[%emt 0:00:43]} Nf6 {[%emt 0:03:55]} 3. Bf4 {[%emt 0:00:06]} c6 {[%emt 0:00:39]} 4. e3 {[%emt 0:00:48]} Bf5 {[%emt 0:00:11]} 5. f3 {[%emt 0:00:40]} h5 {[%emt 0:06:52]} 6. Bd3 {[%emt 0:00:36] D00: 1 d4 d5: Unusual lines.} Bxd3 {[%emt 0:05:24]} 7. Qxd3 {[%emt 0:01:56]} Na6 {[%emt 0:01:58]} 8. Nge2 {[%emt 0:03:04] White is slightly better.} e6 {[%emt 0:00:42]} 9. a3 {[%emt 0:08:48]} Bd6 {[%emt 0:04:38] [#]} 10. e4 $146 {[%emt 0:16:44]} ({Predecessor:} 10. O-O O-O 11. Bg5 Be7 12. Nf4 Nd7 13. Bxe7 Qxe7 14. Nxh5 Rfe8 15. f4 g6 16. Ng3 {½-½ (56) Elmejbri,A (1931)-Najjar,S (1620) Sousse 2021}) 10... Bxf4 {[%emt 0:12:42]} 11. Nxf4 {[%emt 0:01:15]} Qb6 {[%emt 0:19:50]} 12. exd5 {[%emt 0:23:48]} Nxd5 {[%emt 0:12:06]} 13. Ncxd5 {[%emt 0:04:10]} cxd5 {[%emt 0:01:23]} 14. O-O {[%emt 0:00:51]} O-O-O {[%emt 0:03:30]} 15. b4 {[%emt 0:04:14]} Kb8 {[%emt 0:01:13]} 16. Kh1 {[%emt 0:03:08]} Rc8 {[%emt 0:01:50]} 17. b5 {[%emt 0:02:27]} (17. Qe3 $11) 17... Nc7 $15 {[%emt 0:00:16]} 18. a4 {[%emt 0:00:41]} Qd6 {[%emt 0:05:24] Prevents c3.} (18... Qa5 $15) 19. Qd2 {[%emt 0:05:49]} Na8 {[%emt 0:01:41]} 20. a5 {[%emt 0:00:07] Prevents Nb6.} Rc4 {[%emt 0:00:21]} (20... Nc7 $11) 21. b6 {[%emt 0:02:47]} (21. Nd3 $16) 21... axb6 $11 {[%emt 0:03:47]} 22. axb6 {[%emt 0:00:21]} (22. Nd3 {is more complex.} Rhc8 23. axb6 Nxb6 24. Rfb1) 22... Qxb6 {[%emt 0:03:05]} (22... Nxb6 $11 {remains equal.} 23. Rfb1 Nd7) 23. c3 $1 $16 {[%emt 0:02:15]} Nc7 {[%emt 0:01:42]} (23... Rhc8 $16) 24. Nd3 $1 $18 {[%emt 0:01:59][%mdl 1024] Threatens to win with Rfb1. White has strong compensation.} f6 {[%emt 0:01:58]} 25. Rfb1 {[%emt 0:01:13]} Qc6 {[%emt 0:00:59][%cal Oh8d8]} 26. Qa2 {[%emt 0:05:56] aiming for Qa7+.} Kc8 {[%emt 0:01:15]} 27. Qa7 {[%emt 0:01:27]} b5 {[%emt 0:01:29]} (27... Rxc3 $2 28. Rb6 Rxd3 29. Rxc6 bxc6 30. Qc5 $18 (30. Rb1 Kd7 $16)) 28. Nc5 {[%emt 0:01:16]} (28. Nb2 $1 $16) 28... Rxc3 {[%emt 0:00:20] [#]} (28... h4 $11 {keeps the balance.}) 29. h3 $2 {[%emt 0:05:07]} ({Only move:} 29. Na4 $1 $16 {[%cal Ra4c3][%mdl 512]} bxa4 30. Qb8+ Kd7 31. Qxh8) 29... Re8 $15 {[%emt 0:01:14]} (29... Rc4 {seems wilder.} 30. f4 Re8 31. Rc1 g6) 30. Qa5 {[%emt 0:01:29] Against g5} (30. Rc1 $15 Rc4 31. f4) 30... Rc4 $17 {[%emt 0:00:20][%cal Bc3c4,Bc4d4,Bd4c4][%mdl 32]} 31. Nd3 {[%emt 0:00:24]} (31. Nb3 $17 {keeps fighting.}) 31... Kd7 {[%emt 0:00:48] Hoping for ...Ra8.} 32. Qe1 $2 {[%emt 0:00:19]} (32. Nc5+ Ke7 33. Qd2) 32... Rxd4 $19 {[%emt 0:00:26]} 33. Ra7 {[%emt 0:01:24]} Qb6 {[%emt 0:00:25]} ({Inferior is} 33... Rxd3 34. Rc1 Rd4 35. Rxc6 Kxc6 36. Qb1 $17) (33... Ra8 $19 {and Black stays clearly on top.} 34. Rxa8 Nxa8) 34. Rxc7+ {[%emt 0:00:19]} (34. Rb7 $17 Qc6 35. Qe3 Rxd3 36. Rxc7+ Kxc7 37. Qxd3) 34... Qxc7 {[%emt 0:00:09]} 35. Nb4 {[%emt 0:00:19]} Ra8 {[%emt 0:00:44]} 36. Rc1 {[%emt 0:00:26]} Rc4 {[%emt 0:00:20]} 37. Rd1 {[%emt 0:00:01]} Qe5 {[%emt 0:00:24]} 38. Qd2 {[%emt 0:00:51]} Ra1 {[%emt 0:00:08]} 39. Nd3 {[%emt 0:00:35]} Rxd1+ {[%emt 0:00:25]} 40. Qxd1 {[%emt 0:00:00]} Qe3 {[%emt 0:00:00]} 41. Qb3 {[%emt 0:00:33]} Ke7 {[%emt 0:01:28]} 42. f4 {[%emt 0:00:47]} b4 {[%emt 0:00:29] Weighted Error Value: White=0.76/Black=0.33} 0-1

[Event "71st Greek Championship 2022"]
[Site "Athens"]
[Date "2022.12.03"]
[Round "1.2"]
[White "Mitsis, Georgios"]
[Black "Moutousis, Konstantinos"]
[Result "1-0"]
[ECO "A44"]
[WhiteElo "2365"]
[BlackElo "2392"]
[Annotator "TA"]
[PlyCount "85"]
[EventDate "2022.12.04"]
[EventType "tourn"]
[EventCountry "GRE"]
[SourceTitle "playchess.com"]
[Source "ChessBase"]
[SourceQuality "1"]
[TimeControl "40/5400+30:1800+30"]

{[%evp 9,85,81,90,86,81,79,85,77,77,85,88,79,85,70,89,9,1,9,0,0,0,0,0,-73,-55,-69,-41,-34,-12,-12,-12,-12,-13,-12,-13,-13,-12,-84,-93,-93,-84,-87,-78,-78,-84,-87,-86,-108,-72,-72,-81,-84,-84,-83,-84,-93,-87,-93,-93,-96,-96,-161,-100,-161,-160,-222,-220,-210,-205,-186,-192,-155,-70,-77,5916,5916,29973,29973]} 1. d4 {[%emt 0:04:33]} c5 {[%emt 0:09:14]} 2. d5 {[%emt 0:00:31]} e5 {[%emt 0:02:39]} 3. e4 {[%emt 0:01:05]} d6 {[%emt 0:00:09]} 4. Nc3 {[%emt 0:03:19]} a6 {[%emt 0:07:30]} 5. a4 {[%emt 0:00:37]} b6 {[%emt 0:00:17]} 6. Be2 {[%emt 0:00:35] A44: Semi-Benoni.} Nf6 {[%emt 0:00:58]} 7. Nf3 {[%emt 0:00:41][%cal Bg1f3,Bf3d2,Bd2c4][%mdl 32]} Be7 {[%emt 0:00:22][%cal Bf8e7,Be7f6,Bf6d4][%mdl 32]} 8. O-O {[%emt 0:01:29] White is better.} O-O {[%emt 0:00:13]} 9. Nd2 {[%emt 0:01:46]} Nbd7 {[%emt 0:02:45]} 10. Nc4 {[%emt 0:05:19]} Ne8 {[%emt 0:02:25]} 11. g3 {[%emt 0:06:35]} Bf6 {[%emt 0:08:22] [#]} 12. f4 $146 {[%emt 0:04:36] White is much more active.} ({Better is} 12. Qd3 $16) ({Predecessor:} 12. Be3 Qe7 13. Qd2 g6 14. Rab1 a5 15. Rbe1 Bg7 16. Bd3 Ba6 17. b3 Nc7 18. f4 exf4 19. gxf4 Bxc4 20. bxc4 {1-0 (26) Malakhatko,V (2612)-Zozulia,A (2346) Tromsoe 2008}) 12... exf4 $1 $11 {[%emt 0:02:04]} 13. gxf4 {[%emt 0:01:18]} Bb7 {[%emt 0:13:52]} 14. Bg4 {[%emt 0:04:01]} Bd4+ {[%emt 0:00:30]} 15. Be3 {[%emt 0:02:39]} f5 {[%emt 0:00:10]} 16. Bh3 {[%emt 0:06:07]} (16. exf5 b5 17. axb5 Bxc3 18. bxa6 (18. bxc3 axb5 19. Na3 Ndf6 $19) 18... Bxa6 19. Rxa6 Rxa6 $17) (16. Bxf5 $11 Rxf5 17. exf5) 16... Bxc3 {[%emt 0:08:42]} 17. bxc3 {[%emt 0:00:11]} b5 {[%emt 0:00:05]} (17... Qe7 $5 {[%cal Re7e4]} 18. Qe2 (18. exf5 $2 b5 $19) (18. Bxf5 Rxf5 19. exf5 b5 $17) 18... Qxe4 $15) 18. Nd2 {[%emt 0:03:51]} fxe4 {[%emt 0:07:29] ...Ndf6 is the strong threat.} 19. Be6+ {[%emt 0:00:27]} Kh8 {[%emt 0:00:04] Hoping for ...Ndf6.} 20. Nxe4 {[%emt 0:00:12]} Ndf6 {[%emt 0:01:00] Against f5} 21. Nxf6 {[%emt 0:20:38]} Qxf6 {[%emt 0:00:15]} 22. f5 {[%emt 0:02:16] Prevents Qg6+.} Nc7 {[%emt 0:00:58] aiming for ...Nxe6.} (22... Qxc3 {simplifies} 23. Bf4 Nc7 24. axb5 axb5 25. Rxa8 Bxa8 26. Rf2 Re8) 23. Qd2 {[%emt 0:03:28]} (23. Bf4 $11 {keeps the balance.}) 23... Nxe6 $1 $17 {[%emt 0:01:23]} 24. fxe6 {[%emt 0:00:47]} Qg6+ {[%emt 0:01:17]} 25. Qg2 {[%emt 0:00:27] Threatens to win with Qxg6.} Qxg2+ {[%emt 0:00:20]} ({Much worse is} 25... Bxd5 26. Qxg6 hxg6 27. e7 $14) 26. Kxg2 {[%emt 0:00:05]} Bxd5+ {[%emt 0:00:04]} 27. Kg1 {[%emt 0:04:45]} Rxf1+ {[%emt 0:07:28]} 28. Kxf1 {[%emt 0:02:25]} Bxe6 {[%emt 0:00:15]} 29. axb5 {[%emt 0:00:20][%mdl 4096] Endgame KRB-KRB} Bc4+ {[%emt 0:01:27]} 30. Kg1 {[%emt 0:00:07]} Bxb5 {[%emt 0:00:04]} 31. Rd1 {[%emt 0:00:23]} Re8 {[%emt 0:04:23]} 32. Bf4 {[%emt 0:00:21]} h6 {[%emt 0:00:45]} 33. Rxd6 {[%emt 0:01:23]} Re2 {[%emt 0:01:01]} 34. Rd5 {[%emt 0:04:07]} c4 {[%emt 0:00:43]} 35. Rc5 {[%emt 0:00:12] [#]} (35. h4 $17) 35... Kh7 {[%emt 0:01:21]} (35... g5 $1 $19 {[%cal Rg5f4]} 36. Bd6 Kh7) 36. Be5 {[%emt 0:00:13] [#]} (36. h4 $17) 36... g5 $1 $19 {[%emt 0:00:41]} ({Not} 36... Rxc2 37. Rc7 Kg6 38. Ra7 $17) 37. Bd4 {[%emt 0:01:37]} (37. Kf1 $17 Rxc2 38. Ke1) 37... Kg6 {[%emt 0:00:30]} ({Stronger than} 37... Rxc2 38. Rf5) 38. Rd5 {[%emt 0:01:02]} h5 {[%emt 0:04:48]} 39. Rd6+ {[%emt 0:03:14]} Kf5 {[%emt 0:00:15]} 40. Rd5+ {[%emt 0:00:00]} Kg4 {[%emt 0:00:00]} (40... Kf4 $17 {And now ...Bc6 would win.} 41. Bf6 g4 42. Rxh5 Bd7 43. Bg5+ Kf3) 41. Bf6 $15 {[%emt 0:04:17]} Rg2+ $2 {[%emt 0:07:57][%mdl 8192]} 42. Kxg2 $18 {[%emt 0:00:40]} Bc6 {[%emt 0:00:08]} 43. h3+ {[%emt 0:00:06] Quite a comeback for White.   Weighted Error Value: White=0.16 (very precise) /Black=0.27 (precise)} 1-0

[Event "71st Greek Championship 2022"]
[Site "Athens"]
[Date "2022.12.03"]
[Round "1.3"]
[White "Trimitzios, Petros"]
[Black "Markidis, Konstantinos"]
[Result "1-0"]
[ECO "A13"]
[WhiteElo "2358"]
[BlackElo "2290"]
[Annotator "TA"]
[PlyCount "131"]
[EventDate "2022.12.04"]
[EventType "tourn"]
[EventCountry "GRE"]
[SourceTitle "playchess.com"]
[Source "ChessBase"]
[SourceQuality "1"]
[TimeControl "40/5400+30:1800+30"]

{[%evp 14,131,9,14,4,0,22,26,34,27,36,35,22,-31,-28,-20,12,0,0,4,42,32,54,8,16,0,0,-32,-22,-40,-24,-69,-72,-57,-3,-19,0,0,-3,0,0,-52,-65,-45,0,-39,0,0,0,0,0,0,0,0,164,130,128,134,275,287,308,131,165,142,293,267,474,166,619,594,600,547,547,547,547,540,514,493,518,507,480,418,321,164,203,216,222,222,326,312,571,444,571,571,564,540,1117,927,29961,29958,29973,29974,29975,29974,29974,29974,29974,29975,29978,29978,29982,29983,29985,29986,29989,29990,29993,29994,29996,29995]} 1. c4 {[%emt 0:00:13]} e6 {[%emt 0:00:57]} 2. Nf3 {[%emt 0:00:55]} Nf6 {[%emt 0:01:33]} 3. g3 {[%emt 0:01:34]} d5 {[%emt 0:02:31]} 4. Bg2 {[%emt 0:02:00]} d4 {[%emt 0:04:39]} 5. e3 {[%emt 0:03:29]} c5 {[%emt 0:01:32]} 6. exd4 {[%emt 0:00:58]} cxd4 {[%emt 0:00:06]} 7. O-O {[%emt 0:00:13]} Nc6 {[%emt 0:01:26]} 8. d3 {[%emt 0:00:14]} Be7 {[%emt 0:01:58] A13: English Opening: 1...e6.} 9. Re1 {[%emt 0:06:38] Inhibits e5.} Nd7 {[%emt 0:01:49]} 10. Na3 {[%emt 0:01:32]} e5 {[%emt 0:00:53] White has an edge.} 11. Nc2 {[%emt 0:04:21][%cal Ob2b4]} a5 {[%emt 0:00:48] Against b4} 12. Qe2 {[%emt 0:01:27] [#]} O-O $146 {[%emt 0:26:51] [#]} ({Predecessor:} 12... Qb6 13. Bh3 Bf6 14. b3 O-O 15. Ba3 Re8 16. Nd2 Be7 17. Bxe7 Rxe7 18. Bg2 Nf6 {1-0 (36) Koehler,J (2023)-Dehaybe,A (2007) LSS email 2014}) 13. Nd2 {[%emt 0:20:25]} (13. Nfxd4 $1 $11 Nxd4 14. Nxd4) 13... Re8 $15 {[%emt 0:09:04]} 14. b3 {[%emt 0:06:17]} Nc5 {[%emt 0:18:31]} 15. Ba3 {[%emt 0:12:19]} Bf8 {[%emt 0:05:02]} 16. Ne4 {[%emt 0:11:00]} Nxe4 {[%emt 0:01:00]} 17. Bxe4 {[%emt 0:00:08]} Nb4 {[%emt 0:02:26]} 18. Nxb4 {[%emt 0:04:59]} (18. Qh5 $2 g6 19. Qe2 Nxc2 20. Bxf8 Nxe1 $19) (18. Bxb4 $14 axb4 19. Bd5 (19. Qh5 g6 $11)) 18... axb4 $11 {[%emt 0:01:44]} (18... Bxb4 19. Bxb4 axb4 20. Bd5 $16 (20. Qh5 g6 $14)) 19. Bc1 {[%emt 0:00:06]} (19. Qh5 $2 g6 20. Qf3 bxa3 $19) 19... Bd6 {[%emt 0:03:37]} 20. f4 {[%emt 0:06:50]} exf4 $1 {[%emt 0:02:21]} 21. c5 {[%emt 0:04:59]} Bc7 {[%emt 0:01:56]} 22. Bxf4 {[%emt 0:03:38]} (22. Bxh7+ {keeps more tension.} Kf8 23. Qxe8+ Qxe8 24. Rxe8+ Kxe8 25. Be4) 22... Bxf4 {[%emt 0:00:09]} 23. gxf4 {[%emt 0:00:03][%cal Oe4h7]} g6 {[%emt 0:01:50]} ({Black should try} 23... Bf5 $15 24. Qg2 Bxe4 25. Rxe4 Rxe4 26. Qxe4 Qd7) 24. Qf2 {[%emt 0:01:29]} (24. Qd2 $5 {[%cal Rd2b4]}) 24... Re7 {[%emt 0:03:03]} 25. Rac1 {[%emt 0:01:02][%cal Ba1c1,Bc1c6,Bc6b6][%mdl 32]} Be6 {[%emt 0:00:12]} 26. Qg2 {[%emt 0:01:40]} (26. h4 {with more complications.} Rc7 27. f5 gxf5 28. Bxf5 Bxf5 29. Qxf5 Qxh4 30. Re4) 26... Qc8 {[%emt 0:03:43]} 27. c6 {[%emt 0:01:39]} ({White should play} 27. Qg5 $11 Rc7 28. f5 Bxf5 29. Bxf5 Qxf5 30. Qxf5 gxf5 31. Re2) 27... bxc6 $15 {[%emt 0:00:04]} 28. Rxc6 {[%emt 0:00:28]} Qe8 {[%emt 0:00:40][%cal Oe6d5]} (28... Qd7 $5 {[%cal Re6h3]} 29. Rec1 Bh3 $11) 29. Rb6 {[%emt 0:01:20]} (29. Rc5 $5 {[%cal Re4a8]} Rc8 30. Re5 $11) 29... Rd8 {[%emt 0:03:07][%cal Oe6d5]} (29... Rb8 {seems wilder.} 30. Rd6 Rd8 31. Bc6 Bf5) 30. Rf1 {[%emt 0:00:43]} f5 {[%emt 0:00:47]} 31. Bc6 {[%emt 0:00:31]} Qf8 {[%emt 0:00:27]} 32. Rxb4 {[%emt 0:00:24]} Rc7 {[%emt 0:00:24]} 33. Rb7 {[%emt 0:01:23]} Qd6 {[%emt 0:00:50]} (33... Rxc6 $11 {and Black is okay.} 34. Qxc6 Bd5) 34. Rxc7 $18 {[%emt 0:00:17]} Qxc7 {[%emt 0:00:04]} 35. b4 $1 {[%emt 0:00:16] Against Qa5. aiming for a4.} Rd6 {[%emt 0:01:15] [#] Inhibits a4.} (35... Kf8 $16 {keeps fighting.}) 36. b5 $1 {[%emt 0:01:11]} Qa5 {[%emt 0:00:03]} 37. Rf2 {[%emt 0:00:17]} (37. Rb1 $18 {has better winning chances.}) 37... Qc3 {[%emt 0:00:24] [#] Inhibits b6.} 38. Qf3 {[%emt 0:00:32]} Qa1+ $2 {[%emt 0:00:28] A mistake that costs the game.} (38... Bf7 $16 39. Re2 Kg7) 39. Kg2 {[%emt 0:00:31] b6 is the strong threat.} Bxa2 $2 {[%emt 0:00:39]} (39... Qc3 40. Qe2 Bf7) 40. Qe2 $2 {[%emt 0:00:00]} (40. b6) 40... Be6 $2 {[%emt 0:00:00]} (40... Bf7 41. Qe7 Re6 42. Qd8+ Kg7) 41. Qe5 {[%emt 0:03:49]} Qa3 {[%emt 0:04:35] [#]} 42. b6 $1 {[%emt 0:01:21] b7 would kill now.} Rxc6 {[%emt 0:04:02]} 43. b7 {[%emt 0:00:09]} (43. Qxd4 $2 Rd6 44. Qe3 Bf7 $19) 43... Rb6 {[%emt 0:00:41]} 44. b8=Q+ {[%emt 0:00:08]} (44. b8=B $2 Qa8+ 45. Kg1 Qxb8 $19) 44... Rxb8 {[%emt 0:00:10]} 45. Qxb8+ {[%emt 0:00:10][%mdl 4096] Endgame KQR-KQB} Kf7 {[%emt 0:01:53]} 46. Rc2 {[%emt 0:02:06] Threatens to win with Rc7+.} Bd7 {[%emt 0:08:10]} 47. Qb7 {[%emt 0:01:49]} ({Weaker is} 47. Rc7 Qa2+ 48. Kf1 Qa1+ 49. Kf2 Qa2+ 50. Ke1 Qa1+ 51. Kf2 Qa2+ 52. Kg1 Qa1+ 53. Kg2 Qa2+ 54. Kf1 Qa1+ 55. Ke2 Qa2+ 56. Kd1 Qa4+ 57. Kd2 Qa5+ 58. Kc2 Ke7 $18) 47... Qd6 {[%emt 0:01:20]} 48. Qf3 {[%emt 0:09:04]} (48. Qc7 $142 Qxc7 49. Rxc7) 48... h6 {[%emt 0:05:08]} 49. h4 {[%emt 0:00:34]} Kf6 {[%emt 0:00:49]} 50. Qa8 {[%emt 0:02:32] Against Ba4} Kg7 {[%emt 0:01:29] Against Qh8+} (50... Qxf4 $2 51. Qd8+ Ke6 52. Re2+ $18) (50... Kf7 $142 51. Qa7 Ke6 52. Re2+ Kf6) 51. Qa7 {[%emt 0:00:49] Intending Rc7 and mate.} Kf7 $2 {[%emt 0:01:03]} (51... g5 52. Rc4 (52. fxg5 hxg5 53. Qc7 Qd5+ 54. Kg1 gxh4 $18) 52... Kg6) 52. Qc7 {[%emt 0:07:25]} Qd5+ {[%emt 0:03:58]} 53. Kf2 {[%emt 0:01:21]} Qe6 {[%emt 0:03:02]} 54. Qc4 {[%emt 0:01:46]} g5 {[%emt 0:01:32]} 55. hxg5 {[%emt 0:00:57]} hxg5 {[%emt 0:00:04]} 56. fxg5 {[%emt 0:00:13] White mates.} Qxc4 {[%emt 0:00:26]} 57. dxc4 {[%emt 0:00:19] KR-KB} Kg6 {[%emt 0:01:06]} 58. c5 {[%emt 0:00:09]} d3 {[%emt 0:00:15]} 59. Rc3 {[%emt 0:00:21]} Bb5 {[%emt 0:00:09]} 60. Ke1 {[%emt 0:00:26]} f4 {[%emt 0:00:54]} 61. c6 {[%emt 0:00:32]} f3 {[%emt 0:00:23]} 62. c7 {[%emt 0:00:07]} f2+ {[%emt 0:00:22]} 63. Kxf2 {[%emt 0:00:06]} d2 {[%emt 0:00:14]} 64. c8=Q {[%emt 0:00:07]} (64. c8=B d1=Q) 64... d1=Q {[%emt 0:00:09]} 65. Qe6+ {[%emt 0:00:57]} Kxg5 {[%emt 0:01:05]} 66. Rg3+ {[%emt 0:01:03] Weighted Error Value: White=0.25 (precise) /Black=0.50} 1-0

[Event "71st Greek Championship 2022"]
[Site "Athens"]
[Date "2022.12.03"]
[Round "1.4"]
[White "Marinakis, Hristos"]
[Black "Alexiadis, Hristos"]
[Result "1-0"]
[ECO "B14"]
[WhiteElo "2118"]
[BlackElo "2342"]
[Annotator "TA"]
[PlyCount "139"]
[EventDate "2022.12.04"]
[EventType "tourn"]
[EventCountry "GRE"]
[SourceTitle "playchess.com"]
[Source "ChessBase"]
[SourceQuality "1"]
[TimeControl "40/5400+30:1800+30"]

{[%evp 17,139,0,0,0,0,0,0,0,4,0,0,0,29,0,0,0,0,0,97,98,99,100,99,102,97,97,99,77,91,90,96,82,90,83,111,114,116,101,102,82,100,97,139,139,138,137,131,108,108,101,93,93,108,98,103,105,139,136,139,139,139,138,139,139,139,139,139,0,124,116,120,107,110,109,122,98,138,138,170,154,138,138,152,153,185,185,1122,1097,1095,734,1045,894,1618,2012,1766,1414,12823,4314,12837,12838,12838,12839,12844,12844,12845,12845,12847,12847,12847,12847,12848,12848,12850,12848,12850,27999,27999,27999,27999,27999,27999,27999,27998,27999]} 1. e4 {[%emt 0:00:06]} c6 {[%emt 0:00:20]} 2. d4 {[%emt 0:00:30]} d5 {[%emt 0:00:07]} 3. exd5 {[%emt 0:00:08]} cxd5 {[%emt 0:00:06]} 4. c4 {[%emt 0:00:10]} Nf6 {[%emt 0:00:21]} 5. Nc3 {[%emt 0:03:21]} g6 {[%emt 0:06:34]} 6. Nf3 {[%emt 0:04:37]} Bg7 {[%emt 0:00:07]} 7. Bg5 {[%emt 0:05:58]} O-O {[%emt 0:00:09]} 8. Bxf6 {[%emt 0:05:47]} Bxf6 {[%emt 0:00:08]} 9. cxd5 {[%emt 0:03:20]} Bg4 {[%emt 0:18:25]} 10. Be2 {[%emt 0:12:18][%cal Bf1e2,Be2f3,Bf3b7][%mdl 32] B14: Caro-Kann: Panov-Botvinnik Attack with 5...e6 and 5...g6.} Qb6 {[%emt 0:00:15]} 11. O-O {[%emt 0:01:05]} Qxb2 {[%emt 0:06:06]} 12. Ne4 {[%emt 0:09:49] The position is equal.} Bg7 {[%emt 0:04:22] [#]} 13. Qd3 $146 {[%emt 0:10:26]} (13. a4 $5 {[%cal Ra1b1]}) ({Predecessor:} 13. d6 exd6 14. Nxd6 Qb4 15. Nxf7 Rxf7 16. Rb1 Qe7 17. Bc4 Nc6 18. Re1 Qd7 19. h3 Bxf3 20. Qxf3 {½-½ (57) Leniart,A (2372)-Baklan,V (2618) Wroclaw 2009}) 13... Bxf3 {[%emt 0:08:36]} 14. Bxf3 {[%emt 0:00:08]} Qxd4 {[%emt 0:00:03]} 15. Qxd4 {[%emt 0:00:13]} (15. Qa3 {is more complex.} Nd7 16. Qxe7 Rfd8 17. Rad1) 15... Bxd4 {[%emt 0:00:06]} 16. Rab1 {[%emt 0:00:33]} Bb6 {[%emt 0:00:06]} ({Resist} 16... f5 17. Ng5 Nd7 18. Ne6 $16 (18. Rxb7 Nc5 $11)) 17. d6 {[%emt 0:00:28][%mdl 64] [#] Deflection} exd6 {[%emt 0:04:28]} (17... Re8 $11) 18. Nf6+ $16 {[%emt 0:07:21][%mdl 64] Discovered Attack} ({Don't play} 18. Nxd6 Nc6 $11) 18... Kg7 {[%emt 0:00:09]} 19. Bxb7 {[%emt 0:00:05] White has more active pieces. The black rooks are badly placed.} Kxf6 {[%emt 0:00:07]} 20. Bxa8 {[%emt 0:00:05]} Nd7 {[%emt 0:00:04]} 21. Bd5 {[%emt 0:01:04]} Ne5 {[%emt 0:15:14]} 22. Rfc1 {[%emt 0:07:24]} Re8 {[%emt 0:07:23]} 23. Rc2 {[%emt 0:02:04]} h5 {[%emt 0:05:04]} 24. Kf1 {[%emt 0:06:04]} Kg7 {[%emt 0:00:46]} 25. Rd1 {[%emt 0:05:01]} Ng4 {[%emt 0:13:59]} 26. h3 {[%emt 0:02:18]} Nf6 {[%emt 0:00:04]} 27. Bb3 {[%emt 0:08:27]} Rd8 {[%emt 0:03:33]} 28. Re2 {[%emt 0:02:10]} Kf8 {[%emt 0:00:22]} 29. Bd5 {[%emt 0:00:56]} Nxd5 {[%emt 0:04:20]} 30. Rxd5 {[%emt 0:00:06][%mdl 4096] Endgame KRR-KRB} Rc8 {[%emt 0:00:03]} 31. Red2 {[%emt 0:01:36]} Bc5 {[%emt 0:00:18]} 32. Rc2 {[%emt 0:01:24] Hoping for Rxd6.} Rb8 {[%emt 0:00:13]} 33. Rd3 {[%emt 0:01:23]} Rb1+ {[%emt 0:00:40]} 34. Ke2 {[%emt 0:00:07]} Rg1 {[%emt 0:01:28]} 35. g3 {[%emt 0:01:04]} Kg7 {[%emt 0:00:52]} 36. h4 {[%emt 0:00:16]} Kf8 {[%emt 0:01:56]} 37. Rb3 {[%emt 0:00:30]} Kg7 {[%emt 0:01:32]} 38. Rb7 {[%emt 0:00:24]} Ra1 {[%emt 0:00:06]} 39. Re7 {[%emt 0:00:38]} Kf6 {[%emt 0:00:13]} 40. Re4 {[%emt 0:00:00]} Rb1 {[%emt 0:00:00]} 41. Kf3 {[%emt 0:03:30]} Rb7 {[%emt 0:02:43]} 42. Ke2 {[%emt 0:05:11]} Rb1 $1 {[%emt 0:00:25]} 43. Kd3 {[%emt 0:01:36]} Kg7 {[%emt 0:10:08]} 44. Kc4 {[%emt 0:05:23]} Rf1 {[%emt 0:02:45]} 45. Rf4 {[%emt 0:01:02]} Re1 {[%emt 0:08:10]} 46. Rd2 {[%emt 0:04:17]} Re7 {[%emt 0:00:44]} 47. Kd5 {[%emt 0:00:54]} Rc7 {[%emt 0:00:55]} 48. Rb2 {[%emt 0:03:18]} Ba3 {[%emt 0:01:11]} 49. Rb3 {[%emt 0:00:37]} Bc5 {[%emt 0:00:18]} 50. a4 {[%emt 0:03:30][%cal Ba2a4,Ba4a5][%mdl 32]} a5 {[%emt 0:00:49]} 51. Rb5 {[%emt 0:00:40]} Bb4 {[%emt 0:01:36]} (51... Ra7 52. f3 Bf2) 52. Rfxb4 {[%emt 0:02:09]} axb4 {[%emt 0:00:06]} 53. Kxd6 $18 {[%emt 0:00:13] KR-KR} Rc2 {[%emt 0:00:14]} 54. Rxb4 {[%emt 0:00:59]} Rxf2 {[%emt 0:00:09]} 55. a5 {[%emt 0:00:26]} Ra2 {[%emt 0:00:06]} 56. Rb5 {[%emt 0:00:18] Kc6 is the strong threat.} Ra3 {[%emt 0:01:29]} 57. Kc6 {[%emt 0:00:38]} Rxg3 {[%emt 0:00:44]} 58. a6 {[%emt 0:00:22]} Ra3 {[%emt 0:00:29] [#]} 59. Kb6 $1 {[%emt 0:00:34]} f5 {[%emt 0:07:41]} 60. a7 {[%emt 0:00:25]} Rxa7 {[%emt 0:00:03]} 61. Kxa7 {[%emt 0:00:06] KR-K3P} f4 {[%emt 0:00:10]} 62. Kb6 {[%emt 0:01:52]} Kf6 {[%emt 0:00:05]} 63. Kc5 {[%emt 0:02:13]} Ke5 {[%emt 0:00:03]} 64. Kc4+ {[%emt 0:01:08]} Ke4 {[%emt 0:00:02]} 65. Rb6 {[%emt 0:00:55]} f3 {[%emt 0:00:24]} 66. Rxg6 {[%emt 0:00:33]} f2 {[%emt 0:00:52] White mates.} 67. Rf6 {[%emt 0:00:17]} Ke3 {[%emt 0:00:04]} 68. Kd5 {[%emt 0:00:19]} Ke2 {[%emt 0:00:06]} 69. Ke5 {[%emt 0:00:38]} Ke1 {[%emt 0:00:22]} 70. Rf4 {[%emt 0:00:21] Weighted Error Value: White=0.09 (flawless) /Black=0.12 (very precise)} 1-0